{"text_format":"3","workbook":"xlsx","n_sheets":1,"sheets":["Лист1"],"read":"whole","date_system":"1900"}

{"sheet":"Лист1","index":0,"n_rows":36,"n_cols":9,"rows_kept":36,"merged":[[3,6,3,7],[10,0,10,7],[11,0,11,7],[12,0,12,7],[13,0,13,7],[16,1,16,7],[18,0,26,0],[18,1,26,1],[29,0,30,0],[29,1,30,1],[31,1,31,7],[33,1,33,2],[35,0,35,2],[35,6,35,7]]}
[{"$nulls":7},"Приложение 2"]
[{"$nulls":7},"к постановлению администрации города"]
[{"$nulls":7},"Усолье-Сибирское"]
[{"$nulls":6},"от 03.10.2019 № 2495"]
[]
[{"$nulls":7},"\"Приложение 4"]
[{"$nulls":7},"к муниципальной программе города Усолье-Сибирское"]
[{"$nulls":7},"\"Развитие образования\""]
[{"$nulls":7},"на 2019-2024 годы"]
[]
["Информация об участии муниципального образования «город Усолье-Сибирское» в государственных программах Иркутской области в рамках муниципальной программы города Усолье-Сибирское "]
["\"Развитие образования\" на 2019-2024 годы "]
["(наименование муниципальной программы (далее – муниципальная программа))"]
["по состоянию на 26.09.2019 \n"]
[]
["№ п/п","Наименование мероприятия в рамках государственной программы Иркутской области","Наименование мероприятия в рамках муниципальной программы","ВСЕГО:","Федеральный бюджет, руб.","Областной бюджет, руб.","Местный бюджет, руб.","Внебюджетные средства, руб."]
["1.","Государственная программа Иркутской области «Развитие образования» на 2019-2024 годы"]
["1.1.","Субвенции на обеспечение государственных гарантий реализации прав на получение общедоступного и бесплатного дошкольного образования в муниципальных дошкольных образовательных и общеобразовательных организациях\nОсновное мероприятие «Оказание поддержки муниципальным образованиям Иркутской области при реализации образовательных программ»\nПодпрограмма «Дошкольное, общее и дополнительное образование»\nГосударственная программа Иркутской области «Развитие образования»","Обеспечение функционирования дошкольных образовательных учреждений, создание условий для осуществления воспитательно-образовательного процесса",{"$f":"E18+F18+G18+H18","v":{"v":507124981.11,"d":"507,124,981.11"}},{"v":0,"d":"0.00"},{"v":460433700,"d":"460,433,700.00"},{"v":46691281.11,"d":"46,691,281.11"},{"v":0,"d":"0.00"}]
["1.2.","Субсидии местным бюджетам на софинансирование мероприятий по капитальному ремонту образовательных организаций Иркутской области\nОсновное мероприятие «Капитальные ремонты объектов образования муниципальной собственности муниципальных образований Иркутской области»\nПодпрограмма «Дошкольное, общее и дополнительное образование»\nГосударственная программа Иркутской области «Развитие образования»\n","Выборочный капитальный ремонт здания МБДОУ «Детский сад № 6» по адресу: Иркутская область, г. Усолье-Сибирское, проспект Космонавтов, 6 (устройство систем вентиляции помещений пищеблока и прачечной)",{"$f":"E19+F19+G19+H19","v":{"v":5881100,"d":"5,881,100.00"}},{"v":0,"d":"0.00"},{"v":5247100,"d":"5,247,100.00"},{"v":634000,"d":"634,000.00"},{"v":0,"d":"0.00"}]
[null,null,"Выборочный капитальный ремонт здания МБДОУ «Детский сад № 8» по адресу: Иркутская область, г. Усолье-Сибирское, ул. Крупской, 29 (ремонт кровли, фасада, козырьков)",{"v":1378000,"d":"1,378,000.00"},{"v":0,"d":"0.00"},{"v":1198000,"d":"1,198,000.00"},{"v":180000,"d":"180,000.00"},{"v":0,"d":"0.00"}]
[null,null,"Выборочный капитальный ремонт здания МБДОУ «Д/с № 26» по адресу: Иркутская область, г. Усолье-Сибирское, проспект Комсомольский, 22 (замена заполнений оконных проемов)",{"v":6167146.85,"d":"6,167,146.85"},null,{"v":5367000,"d":"5,367,000.00"},{"v":800146.85,"d":"800,146.85"}]
[null,null,"Выборочный капитальный ремонт здания муниципального бюджетного дошкольного образовательного учреждения «Детский сад общеразвивающего вида № 42» (ремонт фасада и замена окон), расположенного по адресу: Иркутская область, г. Усолье-Сибирское, ул. Толбухина, 13",{"v":3275500,"d":"3,275,500.00"},{"v":0,"d":"0.00"},{"v":2849500,"d":"2,849,500.00"},{"v":426000,"d":"426,000.00"},{"v":0,"d":"0.00"}]
[null,null,"Выборочный капитальный ремонт теплового узла здания муниципального бюджетного дошкольного образовательного учреждения «Детский сад № 43», расположенного по адресу: Иркутская область, г. Усолье-Сибирское, проспект Красных Партизан, 28",{"v":4986300,"d":"4,986,300.00"},{"v":0,"d":"0.00"},{"v":4337800,"d":"4,337,800.00"},{"v":648500,"d":"648,500.00"},{"v":0,"d":"0.00"}]
[null,null,"Выборочный капитальный ремонт здания МБДОУ «Детский сад 5» по адресу: Иркутская область, г. Усолье-Сибирское, проспект Космонавтов, д. 46 А",{"v":1671500,"d":"1,671,500.00"},{"v":0,"d":"0.00"},{"v":1490500,"d":"1,490,500.00"},{"v":181000,"d":"181,000.00"},{"v":0,"d":"0.00"}]
[null,null,"Выборочный капитальный ремонт здания МБДОУ «Детский сад 33» по адресу: Иркутская область, г. Усолье-Сибирское, проезд Серегина, 26 (замена заполнений оконных проемов)",{"v":1795700,"d":"1,795,700.00"},{"v":0,"d":"0.00"},{"v":1659200,"d":"1,659,200.00"},{"v":136500,"d":"136,500.00"},{"v":0,"d":"0.00"}]
[null,null,"Выборочный капитальный ремонт системы отопления, замена теплового узла в мастерских и в здании МБОУ «Гимназия № 1» по адресу: Иркутская область, г. Усолье-Cибирское, ул. Толбухина, 21",{"v":7366201.9399999995,"d":"7,366,201.94"},{"v":0,"d":"0.00"},{"v":6331600,"d":"6,331,600.00"},{"v":1034601.94,"d":"1,034,601.94"},{"v":0,"d":"0.00"}]
[null,null,"Выборочный капитальный ремонт здания МБОУ «СОШ № 15» по адресу: Иркутская область, г. Усолье-Сибирское, ул. Розы Люксембург, д. №46 (устройство системы вентиляции спортивного зала)",{"v":4258000,"d":"4,258,000.00"},{"v":0,"d":"0.00"},{"v":3717000,"d":"3,717,000.00"},{"v":541000,"d":"541,000.00"},{"v":0,"d":"0.00"}]
["1.3.","Субсидии местным бюджетам на софинансирование капитальных вложений в объекты муниципальной собственности в сфере образования\nОсновное мероприятие «Приобретение, строительство, реконструкция, в том числе выполнение проектных и изыскательских работ объектов государственной и муниципальной собственности Иркутской области в сфере образования»\nПодпрограмма «Дошкольное, общее и дополнительное образование»\nГосударственная программа Иркутской области «Развитие образования»\n"," Реконструкция здания детского сада № 28 на 215 мест в г. Усолье-Сибирское",{"v":80765133.09,"d":"80,765,133.09"},{"v":0,"d":"0.00"},{"v":76726800,"d":"76,726,800.00"},{"v":4038333.09,"d":"4,038,333.09"},{"v":0,"d":"0.00"}]
["1.4.","Субвенции на обеспечение государственных гарантий реализации прав на получение общедоступного и бесплатного начального общего, основного общего, среднего общего образования в муниципальных общеобразовательных организациях, обеспечение дополнительного образования детей в муниципальных общеобразовательных организациях\nОсновное мероприятие «Оказание поддержки муниципальным образованиям Иркутской области при реализации образовательных программ»\nПодпрограмма «Дошкольное, общее и дополнительное образование»\nГосударственная программа Иркутской области «Развитие образования»\n","Обеспечение функционирования общеобразовательных учреждений, создание условий для осуществления воспитательно-образовательного процесса (обеспечение государственных гарантий реализации прав на получение общедоступного и бесплатного начального общего, основного общего, среднего общего образования в муниципальных общеобразовательных организациях, обеспечение дополнительного образования детей в муниципальных общеобразовательных организациях)",{"v":540843092.11,"d":"540,843,092.11"},{"v":0,"d":"0.00"},{"v":503335960.45,"d":"503,335,960.45"},{"v":37507131.66,"d":"37,507,131.66"},{"v":0,"d":"0.00"}]
["1.5.","Субсидии из областного бюджета местным бюджетам на приобретение средств обучения (мебели для занятий) для учебных классов общеобразовательных организаций Иркутской области\nОсновное мероприятие «Приобретение мебели для учебных классов общеобразовательных организаций Иркутской области»\nПодпрограмма «Дошкольное, общее и дополнительное образование»\nГосударственная программа Иркутской области «Развитие образования»\n","Приобретение средств обучения (мебели для занятий) для учебных классов в МБОУ «Гимназия № 1»",{"v":3960540,"d":"3,960,540.00"},{"v":0,"d":"0.00"},{"v":3445600,"d":"3,445,600.00"},{"v":514940,"d":"514,940.00"},{"v":0,"d":"0.00"}]
[null,null,"Приобретение средств обучения (мебели для занятий) для учебных классов в МБОУ «СОШ № 15»",{"v":3234441,"d":"3,234,441.00"},{"v":0,"d":"0.00"},{"v":2813900,"d":"2,813,900.00"},{"v":420541,"d":"420,541.00"},{"v":0,"d":"0.00"}]
["2.","Государственная программа Иркутской области «Развитие здравоохранения» на 2019-2024 годы"]
["2.1.","Субсидии из областного бюджета местным бюджетам в целях софинансирования расходных обязательств муниципальных образований Иркутской области на обеспечение среднесуточного набора продуктов питания детей, страдающих туберкулезной интоксикацией и (или) находящихся под диспансерным наблюдением у фтизиатра, посещающих группы оздоровительной направленности в муниципальных дошкольных образовательных организациях, расположенных на территории Иркутской области\nОсновное мероприятие «Обеспечение среднесуточного набора питания детям, страдающим туберкулезом и/или наблюдающимся в связи с туберкулезом»\nПодпрограмма «Совершенствование оказания медицинской помощи, включая профилактику заболеваний и формирование здорового образа жизни»\nГосударственная программа Иркутской области «Развитие здравоохранения»","Cофинансирование расходных обязательств органов местного самоуправления муниципальных образований Иркутской области по вопросам местного значения по созданию условий для осуществления присмотра и ухода за детьми в муниципальных дошкольных образовательных организациях на обеспечение среднесуточного набора продуктов питания детей, страдающих туберкулезной интоксикацией и (или) находящихся под диспансерным наблюдением у фтизиатра, посещающих группы оздоровительной направленности в муниципальных дошкольных образовательных организациях, расположенных на территории Иркутской области",{"$f":"E33+F33+G33+H33","v":{"v":1648511.1099999999,"d":"1,648,511.11"}},{"v":0,"d":"0.00"},{"v":619200,"d":"619,200.00"},{"v":1029311.11,"d":"1,029,311.11"},{"v":0,"d":"0.00"}]
[null,"Всего:",null,{"$f":"D18+D19+D20+D21+D22+D23+D24+D25+D26+D27+D28+D29+D30+D31+D33","v":{"v":1174356147.21,"d":"1,174,356,147.21"}},{"$f":"E18+E19+E20+E21+E22+E23+E24+E25+E26+E27+E28+E29+E30+E31+E33","v":{"v":0,"d":"0.00"}},{"v":1079572860.45,"d":"1,079,572,860.45"},{"v":94783286.75999999,"d":"94,783,286.76"},{"v":0,"d":"0.00"},"\"."]
[]
["Мэр города Усолье-Сибирское    ",{"$nulls":5},"М.В. Торопкин"]